Cogmind - Beta 13 @@@ ROGUE MODE // 2024.05.18 @ 20:39:00 Player: Bace Troncons Result: Destroyed by KA-XY5(R) with Subdweller Beam Cannon Performance ------------- Evolutions (0) 0 Regions Visited (2) 400 Robots Destroyed (23) 115 Value Destroyed (559) 559 Prototype IDs (0) 0 Alien Tech Used (0) 0 Bonus (0) 0 TOTAL SCORE: 1074 Bonus ------- None Cogmind --------- Core Integrity 0/250 Matter 16/300 Energy 125/125 System Corruption 7% Temperature Cool (9) Movement Core (400) Ox7 Location -10/Subcaves Parts ------- > --- POWER (1) -------- Light Ion Engine > --- PROPULSION (2) --- (None) > --- UTILITY (2) ------ Large Storage Unit Seismic Detector > --- WEAPON (2) ------- (None) > --- INVENTORY (15) --- Light Treads Light Treads Light Treads Light Treads Hacking Suite Battle Rifle Light Cannon Datajack Piercing Trap Peak State ------------ > --- POWER ------------ Ion Engine > --- PROPULSION ------- Light Treads Light Treads > --- UTILITY ---------- Large Storage Unit Structural Scanner > --- WEAPON ----------- Light Cannon Makeshift Spear > --- INVENTORY -------- Light Ion Engine Light Treads Light Treads Light Treads Seismic Detector Hacking Suite Light Cannon Subdweller Shrapnel Launcher Datajack [Rating: 11] Favorites ----------- Power Light Ion Engine Engine Light Ion Engine Propulsion Light Treads Treads Light Treads Utility Large Storage Unit Device Structural Scanner Storage Large Storage Unit Weapon Light Cannon Energy Gun EM Pulse Gun Ballistic Gun Assault Rifle Ballistic Cannon Light Cannon Launcher Subdweller Shrapnel Launcher Piercing Weapon Makeshift Spear Build | -11 -10 -10 ------- Run | Yrd Mat Sub Slots Evolved . | . . . Power . | . . . Propulsion . | . . . Utility . | . . . Weapon . | . . . Parts Attached 24 | 6 6 12 Power 4 | 1 1 2 Engine 4 | 1 1 2 Core . | . . . Reactor . | . . . Propulsion 7 | 2 3 2 Treads 7 | 2 3 2 Leg . | . . . Wheel . | . . . Hover . | . . . Flight . | . . . Utility 4 | 1 1 2 Device 2 | . . 2 Storage 2 | 1 1 . Processor . | . . . Hackware . | . . . Protection . | . . . Artifact . | . . . Weapon 9 | 2 1 6 Energy Gun 1 | 1 . . Energy Cannon . | . . . Ballistic Gun 3 | 1 . 2 Ballistic Cannon 3 | . 1 2 Launcher 1 | . . 1 Special Weapon . | . . . Impact Weapon . | . . . Slashing Weapon . | . . . Piercing Weapon 1 | . . 1 Special Melee Weapon . | . . . Unidentified Prototypes . | . . . Parts Lost 9 | . . 9 Power 2 | . . 2 Propulsion 2 | . . 2 Utility 1 | . . 1 Weapon 4 | . . 4 Highest Loss Streak 4 | . . 4 To Critical Strikes . | . . . Average Slot Usage (%) 84 | . 77 94 Engine 13 | . 14 13 Treads 27 | . 28 27 Device 4 | . . 10 Storage 14 | . 14 14 Ballistic Gun 10 | . 10 12 Ballistic Cannon 8 | . 9 7 Launcher 2 | . . 5 Naked Turns . | . . . Heaviest Build 35 | 12 28 35 Greatest Support 40 | 40 40 40 Greatest Overweight (x) 8 | 3 . 8 Average Overweight (x) . | . . . Largest Inventory Capacity 15 | 8 15 15 Average Capacity 14 | 7 14 15 Most Carried 13 | 3 13 12 Average Carried 9 | 1 10 10 Final Capacity 15 | 8 15 15 Final Carried 13 | 3 13 9 Class Distribution -------------------- 100% | Mutant Dominant Class ---------------- Mutant | -10/Materials Mutant | -10/Subcaves Resources | -11 -10 -10 ----------- Run | Yrd Mat Sub Matter Collected 1003 | 214 451 338 Remotely . | . . . Salvage Created 463 | . 321 142 Parts 33 | . 24 9 Haulers Intercepted 2 | . 2 . Recyclers Shooed 1 | . 1 . Parts Field Recycled . | . . . Retrieved Matter . | . . . Parts Self-Destructed 4 | . . 4 Prevented . | . . . Kills | -11 -10 -10 ------- Run | Yrd Mat Sub Combat Hostiles Destroyed 15 | . 9 6 Guns 3 | . 2 1 Cannons 8 | . 6 2 AOE 4 | . 1 3 Classes Destroyed 7 | . 6 1 Worker 4 | . 4 . Hauler 2 | . 2 . Operator 1 | . 1 . Watcher 1 | . 1 . Swarmer 5 | . 5 . Grunt 4 | . 4 . Subdweller 6 | . . 6 Best Kill Streak 3 | . 3 1 Combat Bots Only 2 | . 2 1 Max Kills in Single Turn 1 | . 1 1 Gunslinging . | . . . Exploded 1 | . 1 1 Melee . | . . . Uniques/NPCs Destroyed . | . . . Combat | -11 -10 -10 -------- Run | Yrd Mat Sub Hostile Shots Fired 117 | . 67 50 Missed 33 | . 19 14 Damage Taken 1497 | . 428 1069 Core 259 | . 57 202 Absorbed by Shields . | . . . Core Remaining (%) 100 | 100 . . Volleys Fired 90 | . 50 40 Largest 2 | . 2 2 Hottest 70 | . 55 70 Shots Fired 174 | . 102 72 Gun 82 | . 51 31 Cannon 81 | . 51 30 Launcher 11 | . . 11 Special . | . . . Kinetic 174 | . 102 72 Thermal . | . . . Explosive . | . . . Electromagnetic . | . . . Robot Hit Streak 8 | . 4 8 Robot Miss Streak 7 | . 7 2 Penetration Max . | . . . Secondary Targets . | . . . Shots Hit Robots 75 | . 45 30 Core Hits 35 | . 21 14 Critical Kills 2 | . 2 . Critical Parts Destroyed . | . . . Critical Strikes 5 | . 5 . Destroy 2 | . 2 . Blast 3 | . 3 . Melee Attacks 1 | . . 1 Impact . | . . . Slashing . | . . . Piercing 1 | . . 1 Sneak Attacks . | . . . Combat Hostiles . | . . . Follow-up Attacks . | . . . Damage Inflicted 1676 | . 987 689 Guns 426 | . 266 160 Cannons 686 | . 442 244 Explosions 564 | . 279 285 Melee . | . . . Ramming . | . . . Kinetic 1397 | . 708 689 Thermal 279 | . 279 . Explosive . | . . . Electromagnetic . | . . . Impact . | . . . Slashing . | . . . Piercing . | . . . Highest Corruption 7 | . 7 7 Average Corruption 6 | . 6 7 Corruption Purged . | . . . Corruption Blocked . | . . . Effects 57 | . 24 33 Message Errors 21 | . 10 11 Matter Fused 13 | . 2 11 Heat Flow Errors 6 | . 3 3 Energy Discharges 9 | . 4 5 Data Loss (minor) 2 | . 1 1 Data Loss (major) 2 | . 2 . Misfires 2 | . 2 . Alerts 1 | . . 1 Weapon Failures 1 | . . 1 Overload Shots . | . . . Overflow Damage 71 | . 39 32 Projectiles 7 | . 7 . Explosions 64 | . 32 32 Melee . | . . . Knockbacks 9 | . 9 . Impact . | . . . Kinetic 7 | . 7 . Secondary 2 | . 2 . Self-Inflicted Damage 180 | . . 180 Shots 5 | . . 5 Rammed 1 | . 1 . Targets Rammed 1 | . 1 . Kicked . | . . . Crushed . | . . . Highest Temperature 273 | . 273 230 Average Temperature 93 | . 81 122 Received Heat Transfer 273 | . 87 186 Siege Activations . | . . . Robots Corrupted . | . . . Combat Hostiles . | . . . Parts Fried . | . . . Impact Corruptions . | . . . Robots Melted . | . . . Combat Hostiles . | . . . Parts Melted . | . . . Heat Transferred 200 | . 200 . Parts Sabotaged . | . . . Parts Stolen . | . . . Parts Stripped . | . . . Power Chain Reactions . | . . . Alert | -11 -10 -10 ------- Run | Yrd Mat Sub Peak Influence 191 | . 191 . Initial . | . . . Average 34 | . 36 . Maximum Alert Level . | . . . Low Security (%) 100 | 100 100 . Level 1 . | . . . Level 2 . | . . . Level 3 . | . . . Level 4 . | . . . Level 5 . | . . . High Security . | . . . Max Security . | . . . Squads Dispatched 1 | . 1 . Investigation . | . . . Extermination . | . . . Reinforcement 1 | . 1 . Assault . | . . . Garrison . | . . . Intercept . | . . . Searches Triggered . | . . . Construction Impeded . | . . . Haulers Reinforced . | . . . Active Scanning Responses . | . . . Cargo Convoy Interrupts . | . . . Stealth | -11 -10 -10 --------- Run | Yrd Mat Sub Distress Signals . | . . . Communications Jammed . | . . . Distress Signals . | . . . Times Spotted 31 | . 21 10 Peak Tracking Total 4 | . 4 3 Tactical Retreats 3 | . 2 1 Traps | -11 -10 -10 ------- Run | Yrd Mat Sub Traps Triggered 4 | . 4 . Indirectly . | . . . Trap Hack Attempts . | . . . Triggered . | . . . Disarmed . | . . . Reprogrammed . | . . . Reused . | . . . Traps Extracted . | . . . Installed . | . . . Triggered . | . . . Most Traps Carried 1 | . . 1 Machines | -11 -10 -10 ---------- Run | Yrd Mat Sub Machines Disabled 9 | . 9 . Max in Single Turn 3 | . 3 . Machines Repaired . | . . . Machines Dismantled . | . . . Machines Sabotaged . | . . . Overloaded Fab Kills . | . . . Hacking | -11 -10 -10 --------- Run | Yrd Mat Sub Machines Accessed 5 | . 5 . Terminals 4 | . 4 . Fabricators . | . . . Repair Stations . | . . . Recycling Units 1 | . 1 . Scanalyzers . | . . . Garrison Access . | . . . Total Hacks 13 | . 13 . Successful 7 | . 7 . Failed 6 | . 6 . Catastrophic 1 | . 1 . Database Lockouts . | . . . Manual 5 | . 5 . Terminals 12 | . 12 . Fabricators . | . . . Repair Stations . | . . . Recycling Units 1 | . 1 . Scanalyzers . | . . . Garrison Access . | . . . Terminal Hacks 6 | . 6 . Branch Access Points 1 | . 1 . Recycling Unit Index 1 | . 1 . Unreport Threat 3 | . 3 . Registered Components 1 | . 1 . Fabricator Hacks . | . . . Repair Station Hacks . | . . . Recycling Unit Hacks 1 | . 1 . Retrieve Components 1 | . 1 . Scanalyzer . | . . . Garrison Access Hacks . | . . . Unauthorized Hacks . | . . . Terminals . | . . . Fabricators . | . . . Repair Stations . | . . . Recycling Units . | . . . Scanalyzers . | . . . Garrison Access . | . . . Data Cores Recovered . | . . . Used . | . . . Hacking Detections 3 | . 3 . Full Trace Events . | . . . Feedback Events . | . . . Feedback Blocked . | . . . Robot Schematics Acquired . | . . . Robots Built . | . . . Authchips . | . . . Time . | . . . Total Robot Build Rating . | . . . Part Schematics Acquired . | . . . Parts Built . | . . . Authchips . | . . . Time . | . . . Total Part Build Rating . | . . . Parts Repaired . | . . . Time . | . . . Parts Recycled . | . . . Recycled Matter . | . . . Retrieved Matter . | . . . Retrieved Components 10 | . 10 . Parts Scanalyzed . | . . . Part Schematics Acquired . | . . . Parts Damaged . | . . . Bothacking | -11 -10 -10 ------------ Run | Yrd Mat Sub Used RIF Installer . | . . . Robots Hacked . | . . . Non-combat . | . . . Combat . | . . . Robot Hacks Applied . | . . . Relay Couplers Released . | . . . Fabnet Peak Effective % . | . . . Robots Rewired . | . . . Allies Hacked . | . . . Hacks Repelled . | . . . Allies | -11 -10 -10 -------- Run | Yrd Mat Sub Total Allies . | . . . Largest Group . | . . . Highest-Rated Group . | . . . Highest-Rated Ally . | . . . Total Orders . | . . . Ally Attacks . | . . . Total Damage . | . . . Kills . | . . . Allies Corrupted . | . . . Allies Melted . | . . . Intel | -11 -10 -10 ------- Run | Yrd Mat Sub Robot Analysis Total . | . . . Derelict Logs Recovered . | . . . Drone Launches . | . . . Drone Recoveries . | . . . Exploration | -11 -10 -10 ------------- Run | Yrd Mat Sub Turns Passed 2742 | 93 1588 1061 Spaces Moved 1174 | 51 564 559 Core 18 | 17 . 1 Treads 1156 | 34 564 558 Legs . | . . . Wheels . | . . . Hover . | . . . Flight . | . . . Fastest Speed 50 | 50 160 160 Average Speed 160 | 161 160 161 Slowest Speed 450 | 200 160 450 Overloaded Moves . | . . . Propulsion Burnouts . | . . . Robots Hopped . | . . . Cave-ins Triggered . | . . . Exploration Rate (%) 41 | 4 86 34 Regions Visited 2 Branch Regions 1 Pre-discovered Areas . | . . . Known Exits Taken . | . . . Unknown Exits Taken 2 | 1 1 . Scrap Searched 4 | . . 4 Spaces Dug . | . . . Terrain Destroyed 172 | . 41 131 Melee . | . . . Projectile . | . . . AOE 172 | . 41 131 Terrain Rammed . | . . . Walls Destroyed . | . . . Machines Disabled . | . . . Actions | -11 -10 -10 --------- Run | Yrd Mat Sub Total 1853 | 59 1151 643 Wait 538 | . 513 25 Move 1172 | 50 563 559 Hop . | . . . Pick Up 15 | 3 9 3 Fast Attach 10 | 6 2 2 Attach 7 | . . 7 Detach 5 | . 4 1 Swap 7 | . 4 3 Drop 7 | . 5 2 Fire 90 | . 50 40 Melee 1 | . . 1 Ram . | . . . Kick . | . . . Crush 1 | . 1 . Escape Stasis . | . . . Rewire . | . . . Trap . | . . . Miscellaneous . | . . . Route ------- -11/Scrapyard -10/Materials (discovered 4 exits: [*Mat x2] / *Min / *Sub) -10/Subcaves History --------- Turn | Location | Event 25 | -11/Scrapyard | Discovered new exit (range 15) 94 | -11/Scrapyard | Entered Materials 160 | -10/Materials | Identified exit to Mines 315 | -10/Materials | Build established: Mutant 675 | -10/Materials | Discovered new exit (range 12) 981 | -10/Materials | Discovered new exit (range 15) 1663 | -10/Materials | Discovered new exit (range 4) 1682 | -10/Materials | Entered Subcaves 1887 | -10/Subcaves | Disturbed a concealed Subdweller 2220 | -10/Subcaves | A swath of the cavern ceiling suddenly collapsed 2310 | -10/Subcaves | Core integrity fell below 50% 2358 | -10/Subcaves | Visited Clippyterm 2676 | -10/Subcaves | A swath of the cavern ceiling suddenly collapsed 2691 | -10/Subcaves | Ambushed by Subdweller buried in earth 2694 | -10/Subcaves | Ambushed by Subdweller buried in earth 2697 | -10/Subcaves | Ambushed by Subdweller buried in earth 2700 | -10/Subcaves | Ambushed by Subdweller buried in earth 2718 | -10/Subcaves | Core integrity fell below 20% 2743 | -10/Subcaves | Destroyed by KA-XY5(R) with Subdweller Beam Cannon Last Messages --------------- 02615_ Acquired 9 matter. 02626_ System corrupted: Energy discharge (-38). 02665_ System corrupted: Energy discharge (-46). A swath of the cavern ceiling suddenly collapses. 02684_ System corrupted: Energy discharge (-47). 02692_ IR-A18(R): "ARGHSUB!" 02694_ IR-A18(R) destroyed. 02695_ D7-CY2(R): "ARGHSUB!" 02697_ Subatomizers dissect the Sub. Shrapnel Launcher. 02697_ System corrupted: Battle Rifle jammed. 02698_ O4-XFK(R): "NAT20!" 02699_ System corrupted: Matter fused (-8). 02701_ KA-XY5(R): "NOSTUCKSUB!" 02709_ Sub. Shrapnel Launcher destroyed. 02717_ Spk. Treads destroyed. 02721_ System corrupted: Matter fused (-6). 02737_ Lgt. Treads destroyed. 02743_ Battle Rifle destroyed. Map ----- +----------------------------------------------------+ | ##### #### ##??????? | | #### ####### ??????? | | ### #####???? ????? | | ## ###??????? ???? | | ##### #### ###????????## ????? | | #### ## #### ###????????###????? | | " ##### ### ##????????????????? | | ## ######### ####??????????????? | | ### ####### ## #???????????? | | ##### ##???### ## ### ????????? | | ###### ##???######## ### ???????? | | ???#########????####### ### ???????? | | ????########?????????# ### ## ????????? | | ????????????????????## ### #???#???????? | | ???????????????????## ##???????????? | | ???????????????????# #????????????? | | #??????????????????## #### #????????????? | | #???????????????????# ###???# ##????????????? | | #???????????????????## #??????### ##????????????? | | #????????????????????# ;#?????### #????????????? | | #???????????????????## ###?## #????????????? | | #???????????????????# ## " #????????????? | | #???????????????????# ## """#????????????? | | #???????????????????## ## """"#????????????? | | #????????????????????## ## ""#?????????????? | | #???????????????????#### @ "##?????????????? | | ????????????????????# ## ""##?????????????? | | ???????????????????## """"" ????????????? | | ??????????????????## """""?????????????? | | ??????????????????# R """"""?????????????? | | ??????????????????# ##R """""""?????????????? | | ??????????????????## ### """ ""?????????????? | | ???????????????????# #?# ## ?????????? | | #???????????????#### #?# u#? ##??????????? | | #???????????????# #?# "#??## ?????????????? | | #????######????## #?## "#??????????????????? | | #????# #???# ### "#??????????????????? | | ?????# #??# ## #??????????????????? | | ?????# ### #?????????###??????? | | ?????# # ###??????## #??????? | | ?????#" ##?##### #??????? | | ??#"## %] "" ### #??????? | | ???#"" "" ## ##??????? | | ????## "" ### ##???????? | | ?????#" " ##?# #????????? | | ?????## ## ##??#### ##????????? | | ??????????## "#####??????########?????????? | | ???????????## ##???????????????????????????? | | ????????????# #????????????????????????????? | | ????????????## ##????????????????????????????? | +----------------------------------------------------+ Best States ------------- Heat Dissipation 25 Energy Generation 10 Energy Capacity 250 Matter Stores 298 Matter Capacity 300 Sight Range 16 Terrain Scan Density 10 Evasion (%) 40 Recoil Reduction 2 Item Schematics ----------------- None Robot Schematics ------------------ None Fabricated ------------ Nothing Alien Tech Used ----------------- None Achievements -------------- None Challenges ------------ None Game ------ Seed LobotomyStorageBoregun Manual? 0 Play Time 00:14:36 Cumulative 80.3 hours Start 2024.05.18 @ 20:23:18 End 2024.05.18 @ 20:39:00 Sessions 1 Manual Loads 0 Difficulty Rogue Special Mode None Game No. 126 Rogue 126 Adventurer 0 Explorer 0 Win Type - Total 1 Types 1/0/0/0/0/0/0/0/0 Lore% 40 Gallery% 43 Achievement% 32 Wizard Run 0 Options --------- Layout 1 ASCII 0 Keyboard 1 Movement Numpad Keybinds 0 Fullscreen 1 Font 24/Smallcaps Map View 50x35 Zoom Use 0% Tactical HUD 1 Map Filters NONE Filters NONE Steam 1 RUN: a694f975-dcf3-41c2-a22e-3599a9ac2c82